fUST/lending_fUST_20250511
["ID","MTS","AMOUNT","RATE_DAILY","PERIOD"]
[360622488,1746906666948,-400.0,9.863e-05,2]
[360622489,1746906666958,-400.0,9.863e-05,2]
[360622490,1746906667175,-400.0,9.863e-05,2]
[360622491,1746906667200,-322.03854032,9.863e-05,2]
[360622492,1746906667210,-494.13,9.863e-05,2]
[360622493,1746906667219,-400.0,9.863e-05,2]
[360622494,1746906667229,-400.0,9.863e-05,2]
[360622495,1746906667238,-400.0,9.863e-05,2]
[360622496,1746906667248,-438.08,9.863e-05,2]
[360622497,1746906667257,-665.28,9.863e-05,2]
[360622498,1746906667266,-643.06,9.863e-05,2]
[360622499,1746906667276,-1142.12,9.863e-05,2]
[360622500,1746906667286,-481.20721126,9.863e-05,2]
[360622501,1746906667295,-1235.06,9.863e-05,2]
[360622502,1746906667304,-400.0,9.863e-05,2]
[360622503,1746906667314,-400.0,9.863e-05,2]
[360622504,1746906667323,-4110.99,9.863e-05,2]
[360622505,1746906667333,-512.06,9.863e-05,2]
[360622506,1746906667342,-408.04,9.863e-05,2]
[360622507,1746906667352,-866.6,9.863e-05,2]
[360622508,1746906667362,-1197.32,9.863e-05,2]
[360622509,1746906667371,-4277.51,9.863e-05,2]
[360622510,1746906667380,-400.0,9.863e-05,2]
[360622511,1746906667390,-400.0,9.863e-05,2]
[360622512,1746906667399,-852.33,9.863e-05,2]
[360622513,1746906667408,-400.0,9.863e-05,2]
[360622514,1746906667417,-1309.03,9.863e-05,2]
[360622515,1746906667426,-1077.29,9.863e-05,2]
[360622516,1746906667436,-7785.86,9.863e-05,2]
[360622517,1746906667446,-400.0,9.863e-05,2]
[360622518,1746906667456,-798.74,9.863e-05,2]
[360622519,1746906667465,-400.0,9.863e-05,2]
[360622520,1746906667474,-2347.64,9.863e-05,2]
[360622521,1746906667484,-722.49,9.863e-05,2]
[360622522,1746906667494,-400.0,9.863e-05,2]
[360622523,1746906667504,-400.0,9.863e-05,2]
[360622524,1746906667513,-400.0,9.863e-05,2]
[360622525,1746906667522,-1540.79,9.863e-05,2]
[360622526,1746906667531,-415.52,9.863e-05,2]
[360622527,1746906667540,-1202.77,9.863e-05,2]
[360622528,1746906667550,-8125.42,9.863e-05,2]
[360622529,1746906667562,-455.9,9.863e-05,2]
[360622530,1746906667571,-728.41,9.863e-05,2]
[360622531,1746906667580,-4052.84,9.863e-05,2]
[360622532,1746906667590,-1722.78,9.863e-05,2]
[360622533,1746906667601,-400.0,9.863e-05,2]
[360622534,1746906667611,-400.0,9.863e-05,2]
[360622535,1746906667621,-961.45,9.863e-05,2]
[360622536,1746906667632,-400.0,9.863e-05,2]
[360622537,1746906667641,-400.0,9.863e-05,2]
[360622538,1746906667650,-513.69,9.863e-05,2]
[360622539,1746906667660,-1620.11,9.863e-05,2]
[360622540,1746906667669,-1522.1,9.863e-05,2]
[360622541,1746906667679,-855.77,9.863e-05,2]
[360622542,1746906667688,-3617.99,9.863e-05,2]
[360622543,1746906667698,-400.0,9.863e-05,2]
[360622544,1746906667707,-1039.2,9.863e-05,2]
[360622545,1746906667717,-1521.55,9.863e-05,2]
[360622546,1746906667727,-400.0,9.863e-05,2]
[360622547,1746906667737,-483.77,9.863e-05,2]
[360622548,1746906667747,-913.03,9.863e-05,2]
[360622549,1746906667756,-794.3,9.863e-05,2]
[360622550,1746906667766,-720.62,9.863e-05,2]
[360622551,1746906667775,-400.0,9.863e-05,2]
[360622552,1746906667784,-1418.47,9.863e-05,2]
[360622553,1746906667793,-400.0,9.863e-05,2]
[360622554,1746906667802,-400.0,9.863e-05,2]
[360622555,1746906667812,-480.68,9.863e-05,2]
[360622556,1746906667823,-400.0,9.863e-05,2]
[360622557,1746906667833,-400.0,9.863e-05,2]
[360622558,1746906667843,-1863.48,9.863e-05,2]
[360622559,1746906667853,-619.24,9.863e-05,2]
[360622560,1746906667863,-400.0,9.863e-05,2]
[360622561,1746906667874,-400.0,9.863e-05,2]
[360622562,1746906667883,-1742.97,9.863e-05,2]
[360622563,1746906667893,-499.88,9.863e-05,2]
[360622564,1746906667903,-400.0,9.863e-05,2]
[360622565,1746906667913,-1689.1,9.863e-05,2]
[360622566,1746906667922,-1471.66,9.863e-05,2]
[360622567,1746906667932,-400.0,9.863e-05,2]
[360622568,1746906667941,-400.0,9.863e-05,2]
[360622569,1746906667951,-1375.35,9.863e-05,2]
[360622570,1746906667961,-4432.98,9.863e-05,2]
[360622571,1746906667971,-719.53,9.863e-05,2]
[360622572,1746906667981,-400.0,9.863e-05,2]
[360622573,1746906667991,-1921.61,9.863e-05,2]
[360622574,1746906668000,-400.0,9.863e-05,2]
[360622575,1746906668010,-881.79,9.863e-05,2]
[360622576,1746906668020,-893.91,9.863e-05,2]
[360622577,1746906668029,-3693.92,9.863e-05,2]
[360622578,1746906668038,-676.37,9.863e-05,2]
[360622579,1746906668048,-400.0,9.863e-05,2]
[360622580,1746906668058,-6166.4,9.863e-05,2]
[360622581,1746906668068,-1278.01,9.863e-05,2]
[360622582,1746906668077,-416.85,9.863e-05,2]
[360622583,1746906668087,-400.0,9.863e-05,2]
[360622584,1746906668098,-427.37,9.863e-05,2]
[360622585,1746906668108,-922.84,9.863e-05,2]
[360622586,1746906668118,-400.0,9.863e-05,2]
[360622587,1746906668128,-400.0,9.863e-05,2]
[360622588,1746906668138,-445.82,9.863e-05,2]
[360622589,1746906668147,-1409.07,9.863e-05,2]
[360622590,1746906668157,-2326.13,9.863e-05,2]
[360622591,1746906668167,-8310.69,9.863e-05,2]
[360622592,1746906668177,-400.0,9.863e-05,2]
[360622593,1746906668188,-2015.99,9.863e-05,2]
[360622594,1746906668198,-3912.6,9.863e-05,2]
[360622595,1746906668207,-400.0,9.863e-05,2]
[360622596,1746906668218,-400.0,9.863e-05,2]
[360622597,1746906668229,-2641.95,9.863e-05,2]
[360622598,1746906668239,-2579.44,9.863e-05,2]
[360622599,1746906668248,-557.25,9.863e-05,2]
[360622600,1746906668258,-400.0,9.863e-05,2]
[360622601,1746906668268,-2704.17,9.863e-05,2]
[360622602,1746906668277,-613.79811131,9.878e-05,2]
[360622603,1746906668286,-279.82249697,0.0001,2]
[360622604,1746906668297,-900.0,0.0001,2]
[360622605,1746906668306,-1000.83,0.0001,2]
[360622606,1746906668316,-2200.0,0.0001,2]
[360622607,1746906668325,-30214.48381693,0.0001,2]
[360622608,1746906668335,-30214.48381671,0.0001,2]
[360622609,1746906668345,-30214.48381671,0.0001,2]
[360622610,1746906668354,-30214.48381671,0.0001,2]
[360622611,1746906668364,-457.42,0.00010136,2]
[360622612,1746906668374,-525.79,0.00010136,2]
[360622613,1746906668383,-400.0,0.00010136,2]
[360622614,1746906668393,-400.0,0.00010136,2]
[360622615,1746906668402,-400.0,0.00010136,2]
[360622616,1746906668412,-434.68,0.00010136,2]
[360622617,1746906668421,-400.0,0.00010136,2]
[360622618,1746906668430,-400.0,0.00010136,2]
[360622619,1746906668440,-478.83,0.00010136,2]
[360622620,1746906668450,-832.17,0.00010136,2]
[360622621,1746906668459,-400.0,0.00010136,2]
[360622622,1746906668469,-400.0,0.00010136,2]
[360622623,1746906668479,-400.0,0.00010136,2]
[360622624,1746906668490,-400.0,0.00010136,2]
[360622625,1746906668500,-824.8,0.00010136,2]
[360622626,1746906668509,-400.0,0.00010136,2]
[360622627,1746906668519,-739.55,0.00010136,2]
[360622628,1746906668529,-400.0,0.00010136,2]
[360622629,1746906668539,-1274.07,0.00010136,2]
[360622630,1746906668549,-430.65251996,0.00010136,2]
[360622631,1746906668561,-954.18,0.00010136,2]
[360622632,1746906668571,-985.97,0.00010136,2]
[360622633,1746906668580,-400.0,0.00010136,2]
[360622634,1746906668589,-400.0,0.00010136,2]
[360622635,1746906668602,-400.0,0.00010136,2]
[360622636,1746906668611,-453.4,0.00010136,2]
[360622637,1746906668621,-400.0,0.00010136,2]
[360622638,1746906668632,-400.0,0.00010136,2]
[360622639,1746906668643,-400.0,0.00010136,2]
[360622640,1746906668653,-400.0,0.00010136,2]
[360622641,1746906668664,-448.67123337,0.00010136,2]
[360622642,1746906668674,-504.97,0.00010136,2]
[360622643,1746906668684,-151.0,0.00010136,2]
[360622644,1746906668693,-446.99,0.00010136,2]
[360622645,1746906668703,-400.0,0.00010136,2]
[360622646,1746906668715,-151.0,0.00010136,2]
[360622647,1746906668725,-722.59,0.00010136,2]
[360622648,1746906668734,-400.0,0.00010136,2]
[360622649,1746906668745,-400.0,0.00010136,2]
[360622650,1746906668757,-400.0,0.00010136,2]
[360622651,1746906668769,-640.39,0.00010136,2]
[360622652,1746906668778,-400.0,0.00010136,2]
[360622653,1746906668789,-400.0,0.00010136,2]
[360622654,1746906668799,-522.88,0.00010136,2]
[360622655,1746906668809,-400.0,0.00010136,2]
[360622656,1746906668819,-427.35,0.00010136,2]
[360622657,1746906668829,-539.65,0.00010136,2]
[360622658,1746906668839,-562.01,0.00010136,2]
[360622659,1746906668849,-400.0,0.00010136,2]
[360622660,1746906668859,-400.0,0.00010136,2]
[360622661,1746906668868,-1026.92,0.00010136,2]
[360622662,1746906668878,-400.0,0.00010136,2]
[360622663,1746906668888,-400.0,0.00010136,2]
[360622664,1746906668897,-1419.13,0.00010136,2]
[360622665,1746906668907,-489.84,0.00010136,2]
[360622666,1746906668917,-953.05,0.00010136,2]
[360622667,1746906668927,-400.0,0.00010136,2]
[360622668,1746906668936,-695.87,0.00010136,2]
[360622669,1746906668946,-400.0,0.00010136,2]
[360622670,1746906668956,-400.0,0.00010136,2]
[360622671,1746906668966,-1151.25,0.00010136,2]
[360622672,1746906668975,-2025.76,0.00010136,2]
[360622673,1746906668985,-699.78,0.00010136,2]
[360622674,1746906668994,-400.0,0.00010136,2]
[360622675,1746906669002,-435.97,0.00010136,2]
[360622676,1746906669012,-400.0,0.00010136,2]
[360622677,1746906669022,-1951.67,0.00010136,2]
[360622678,1746906669032,-249.183313,0.00010136,2]
[360622679,1746906669042,-400.0,0.00010136,2]
[360622680,1746906669051,-781.59,0.00010136,2]
[360622681,1746906669063,-615.73,0.00010136,2]
[360622682,1746906669072,-400.0,0.00010136,2]
[360622683,1746906669082,-1746.81,0.00010136,2]
[360622684,1746906669092,-400.0,0.00010136,2]
[360622685,1746906669102,-807.94,0.00010136,2]
[360622686,1746906669112,-667.76,0.00010136,2]
[360622687,1746906669123,-400.0,0.00010136,2]
[360622688,1746906669132,-400.0,0.00010136,2]
[360622689,1746906669142,-1882.63,0.00010136,2]
[360622690,1746906669152,-400.0,0.00010136,2]
[360622691,1746906669162,-1100.05,0.00010136,2]
[360622692,1746906669171,-400.0,0.00010136,2]
[360622693,1746906669181,-400.0,0.00010136,2]
[360622694,1746906669191,-494.13,0.00010136,2]
[360622695,1746906669201,-400.0,0.00010136,2]
[360622696,1746906669211,-403.69,0.00010136,2]
[360622697,1746906669220,-400.0,0.00010136,2]
[360622698,1746906669230,-400.0,0.00010136,2]
[360622699,1746906669240,-438.08,0.00010136,2]
[360622700,1746906669250,-665.28,0.00010136,2]
[360622701,1746906669260,-643.06,0.00010136,2]
[360622702,1746906669269,-692.72,0.00010136,2]
[360622703,1746906669279,-888.64,0.00010136,2]
[360622704,1746906669289,-1142.12,0.00010136,2]
[360622705,1746906669299,-1160.64,0.00010136,2]
[360622706,1746906669309,-400.0,0.00010136,2]
[360622707,1746906669319,-1235.06,0.00010136,2]
[360622708,1746906669328,-400.0,0.00010136,2]
[360622709,1746906669338,-400.0,0.00010136,2]
[360622710,1746906669348,-4110.99,0.00010136,2]
[360622711,1746906669358,-512.06,0.00010136,2]
[360622712,1746906669367,-408.04,0.00010136,2]
[360622713,1746906669377,-866.6,0.00010136,2]
[360622714,1746906669386,-400.0,0.00010136,2]
[360622715,1746906669396,-1197.32,0.00010136,2]
[360622716,1746906669406,-4277.51,0.00010136,2]
[360622717,1746906669416,-400.0,0.00010136,2]
[360622718,1746906669425,-400.0,0.00010136,2]
[360622719,1746906669434,-400.0,0.00010136,2]
[360622720,1746906669444,-852.33,0.00010136,2]
[360622721,1746906669453,-400.0,0.00010136,2]
[360622722,1746906669462,-1309.03,0.00010136,2]
[360622723,1746906669472,-1077.29,0.00010136,2]
[360622724,1746906669481,-7785.86,0.00010136,2]
[360622725,1746906669491,-400.0,0.00010136,2]
[360622726,1746906669500,-400.0,0.00010136,2]
[360622727,1746906669509,-798.74,0.00010136,2]
[360622728,1746906669519,-400.0,0.00010136,2]
[360622729,1746906669528,-400.0,0.00010136,2]
[360622730,1746906669538,-2347.64,0.00010136,2]
[360622731,1746906669549,-722.49,0.00010136,2]
[360622732,1746906669559,-523.62,0.00010136,2]
[360622733,1746906669569,-400.0,0.00010136,2]
[360622734,1746906669578,-400.0,0.00010136,2]
[360622735,1746906669587,-400.0,0.00010136,2]
[360622736,1746906669598,-1540.79,0.00010136,2]
[360622737,1746906669607,-400.0,0.00010136,2]
[360622738,1746906669616,-633.73,0.00010136,2]
[360622739,1746906669626,-400.0,0.00010136,2]
[360622740,1746906669635,-415.52,0.00010136,2]
[360622741,1746906669645,-460.15,0.00010136,2]
[360622742,1746906669654,-1202.77,0.00010136,2]
[360622743,1746906669664,-671.11,0.00010136,2]
[360622744,1746906669673,-557.78,0.00010136,2]
[360622745,1746906669682,-8125.42,0.00010136,2]
[360622746,1746906669691,-455.9,0.00010136,2]
[360622747,1746906669701,-728.41,0.00010136,2]
[360622748,1746906669710,-903.04,0.00010136,2]
[360622749,1746906669719,-4052.84,0.00010136,2]
[360622750,1746906669730,-1722.78,0.00010136,2]
[360622751,1746906669739,-192.38,0.00010136,2]
[360622752,1746906669749,-400.0,0.00010136,2]
[360622753,1746906669759,-400.0,0.00010136,2]
[360622754,1746906669768,-400.0,0.00010136,2]
[360622755,1746906669778,-961.45,0.00010136,2]
[360622756,1746906669787,-400.0,0.00010136,2]
[360622757,1746906669796,-400.0,0.00010136,2]
[360622758,1746906669806,-513.69,0.00010136,2]
[360622759,1746906669815,-738.49,0.00010136,2]
[360622760,1746906669825,-1620.11,0.00010136,2]
[360622761,1746906669834,-1522.1,0.00010136,2]
[360622762,1746906669843,-855.77,0.00010136,2]
[360622763,1746906669853,-3617.99,0.00010136,2]
[360622764,1746906669862,-400.0,0.00010136,2]
[360622765,1746906669872,-1039.2,0.00010136,2]
[360622766,1746906669882,-828.14,0.00010136,2]
[360622767,1746906669892,-1521.55,0.00010136,2]
[360622768,1746906669901,-400.0,0.00010136,2]
[360622769,1746906669910,-483.77,0.00010136,2]
[360622770,1746906669920,-2047.93,0.00010136,2]
[360622771,1746906669930,-913.03,0.00010136,2]
[360622772,1746906669940,-400.0,0.00010136,2]
[360622773,1746906669950,-794.3,0.00010136,2]
[360622774,1746906669960,-974.46,0.00010136,2]
[360622775,1746906669969,-720.62,0.00010136,2]
[360622776,1746906669979,-400.0,0.00010136,2]
[360622777,1746906669989,-1418.47,0.00010136,2]
[360622778,1746906669999,-400.0,0.00010136,2]
[360622779,1746906670009,-400.0,0.00010136,2]
[360622780,1746906670018,-863.31,0.00010136,2]
[360622781,1746906670028,-480.68,0.00010136,2]
[360622782,1746906670038,-400.0,0.00010136,2]
[360622783,1746906670048,-400.0,0.00010136,2]
[360622784,1746906670058,-1863.48,0.00010136,2]
[360622785,1746906670067,-619.24,0.00010136,2]
[360622786,1746906670077,-400.0,0.00010136,2]
[360622787,1746906670087,-400.0,0.00010136,2]
[360622788,1746906670096,-1742.97,0.00010136,2]
[360622789,1746906670106,-499.88,0.00010136,2]
[360622790,1746906670116,-400.0,0.00010136,2]
[360622791,1746906670125,-400.0,0.00010136,2]
[360622792,1746906670135,-629.14,0.00010136,2]
[360622793,1746906670145,-1689.1,0.00010136,2]
[360622794,1746906670155,-1471.66,0.00010136,2]
[360622795,1746906670165,-400.0,0.00010136,2]
[360622796,1746906670174,-400.0,0.00010136,2]
[360622797,1746906670184,-1375.35,0.00010136,2]
[360622798,1746906670194,-4432.98,0.00010136,2]
[360622799,1746906670203,-484.23,0.00010136,2]
[360622800,1746906670213,-719.53,0.00010136,2]
[360622801,1746906670223,-400.0,0.00010136,2]
[360622802,1746906670232,-1921.61,0.00010136,2]
[360622803,1746906670241,-400.0,0.00010136,2]
[360622804,1746906670251,-881.79,0.00010136,2]
[360622805,1746906670260,-739.18,0.00010136,2]
[360622806,1746906670270,-922.29,0.00010136,2]
[360622807,1746906670279,-2351.73,0.00010136,2]
[360622808,1746906670288,-893.91,0.00010136,2]
[360622809,1746906670297,-2022.22,0.00010136,2]
[360622810,1746906670307,-3693.92,0.00010136,2]
[360622811,1746906670318,-676.37,0.00010136,2]
[360622812,1746906670328,-1891.95,0.00010136,2]
[360622813,1746906670337,-970.32,0.00010136,2]
[360622814,1746906670347,-400.0,0.00010136,2]
[360622815,1746906670356,-1140.17,0.00010136,2]
[360622816,1746906670366,-436.7,0.00010136,2]
[360622817,1746906670376,-6166.4,0.00010136,2]
[360622818,1746906670386,-1278.01,0.00010136,2]
[360622819,1746906670396,-400.0,0.00010136,2]
[360622820,1746906670406,-416.85,0.00010136,2]
[360622821,1746906670416,-427.37,0.00010136,2]
[360622822,1746906670426,-1347.82,0.00010136,2]
[360622823,1746906670435,-793.93,0.00010136,2]
[360622824,1746906670445,-789.56,0.00010136,2]
[360622825,1746906670456,-922.84,0.00010136,2]
[360622826,1746906670466,-400.0,0.00010136,2]
[360622827,1746906670617,-400.0,0.00010136,2]
[360622828,1746906670653,-400.0,0.00010136,2]
[360622829,1746906670663,-445.82,0.00010136,2]
[360622830,1746906670673,-400.0,0.00010136,2]
[360622831,1746906670683,-1409.07,0.00010136,2]
[360622832,1746906670694,-1926.65,0.00010136,2]
[360622833,1746906670704,-2326.13,0.00010136,2]
[360622834,1746906670714,-8310.69,0.00010136,2]
[360622835,1746906670725,-400.0,0.00010136,2]
[360622836,1746906670735,-2542.91,0.00010136,2]
[360622837,1746906670747,-2015.99,0.00010136,2]
[360622838,1746906670757,-3912.6,0.00010136,2]
[360622839,1746906670768,-400.0,0.00010136,2]
[360622840,1746906670778,-447.46,0.00010136,2]
[360622841,1746906670788,-400.0,0.00010136,2]
[360622842,1746906670799,-2641.95,0.00010136,2]
[360622843,1746906670809,-2579.44,0.00010136,2]
[360622844,1746906670819,-705.43,0.00010136,2]
[360622845,1746906670829,-512.02,0.00010136,2]
[360622846,1746906670839,-661.8,0.00010136,2]
[360622847,1746906670850,-557.25,0.00010136,2]
[360622848,1746906670860,-400.0,0.00010136,2]
[360622849,1746906670871,-2704.17,0.00010136,2]
[360622850,1746906670882,-30214.48381671,0.00010176,2]
[360622851,1746906670891,-1494.81685812,0.000102,2]
[360622852,1746906670901,-1000.0,0.000102,2]
[360622853,1746906670912,-635.0,0.000102,2]
[360622854,1746906670923,-613.79811131,0.00010255,2]
[360622855,1746906670932,-1035.72390633,0.00010279,2]
[360622856,1746906670942,-457.42,0.0001041,2]
[360622857,1746906670951,-525.79,0.0001041,2]
[360622858,1746906670961,-400.0,0.0001041,2]
[360622859,1746906670971,-400.0,0.0001041,2]
[360622860,1746906670980,-400.0,0.0001041,2]
[360622861,1746906670991,-434.68,0.0001041,2]
[360622862,1746906671002,-400.0,0.0001041,2]
[360622863,1746906671013,-400.0,0.0001041,2]
[360622864,1746906671023,-478.83,0.0001041,2]
[360622865,1746906671033,-832.17,0.0001041,2]
[360622866,1746906671043,-400.0,0.0001041,2]
[360622867,1746906671053,-400.0,0.0001041,2]
[360622868,1746906671063,-400.0,0.0001041,2]
[360622869,1746906671073,-400.0,0.0001041,2]
[360622870,1746906671083,-824.8,0.0001041,2]
[360622871,1746906671092,-400.0,0.0001041,2]
[360622872,1746906671102,-739.55,0.0001041,2]
[360622873,1746906671112,-400.0,0.0001041,2]
[360622874,1746906671122,-1274.07,0.0001041,2]
[360622875,1746906671132,-954.18,0.0001041,2]
[360622876,1746906671142,-985.97,0.0001041,2]
[360622877,1746906671152,-400.0,0.0001041,2]
[360622878,1746906671162,-400.0,0.0001041,2]
[360622879,1746906671172,-400.0,0.0001041,2]
[360622880,1746906671182,-453.4,0.0001041,2]
[360622881,1746906671192,-400.0,0.0001041,2]
[360622882,1746906671202,-400.0,0.0001041,2]
[360622883,1746906671212,-400.0,0.0001041,2]
[360622884,1746906671222,-237.54546531,0.0001041,2]
[360622885,1746906671232,-504.97,0.0001041,2]
[360622886,1746906671243,-151.0,0.0001041,2]
[360622887,1746906671253,-446.99,0.0001041,2]
[360622888,1746906671265,-400.0,0.0001041,2]
[360622889,1746906671278,-271.285387,0.0001041,2]
[360622890,1746906671288,-722.59,0.0001041,2]
[360622891,1746906671298,-400.0,0.0001041,2]
[360622892,1746906671308,-400.0,0.0001041,2]
[360622893,1746906671318,-400.0,0.0001041,2]
[360622894,1746906671329,-640.39,0.0001041,2]
[360622895,1746906671339,-400.0,0.0001041,2]
[360622896,1746906671349,-400.0,0.0001041,2]
[360622897,1746906671359,-522.88,0.0001041,2]
[360622898,1746906671369,-400.0,0.0001041,2]
[360622899,1746906671379,-427.35,0.0001041,2]
[360622900,1746906671389,-539.65,0.0001041,2]
[360622901,1746906671399,-562.01,0.0001041,2]
[360622902,1746906671409,-400.0,0.0001041,2]
[360622903,1746906671419,-400.0,0.0001041,2]
[360622904,1746906671428,-1026.92,0.0001041,2]
[360622905,1746906671438,-400.0,0.0001041,2]
[360622906,1746906671447,-400.0,0.0001041,2]
[360622907,1746906671459,-1419.13,0.0001041,2]
[360622908,1746906671468,-489.84,0.0001041,2]
[360622909,1746906671478,-953.05,0.0001041,2]
[360622910,1746906671488,-400.0,0.0001041,2]
[360622911,1746906671500,-695.87,0.0001041,2]
[360622912,1746906671510,-400.0,0.0001041,2]
[360622913,1746906671519,-400.0,0.0001041,2]
[360622914,1746906671529,-1151.25,0.0001041,2]
[360622915,1746906671539,-2025.76,0.0001041,2]
[360622916,1746906671552,-699.78,0.0001041,2]
[360622917,1746906671562,-400.0,0.0001041,2]
[360622918,1746906671572,-435.97,0.0001041,2]
[360622919,1746906671582,-400.0,0.0001041,2]
[360622920,1746906671597,-1951.67,0.0001041,2]
[360622921,1746906671607,-400.0,0.0001041,2]
[360622922,1746906671616,-781.59,0.0001041,2]
[360622923,1746906671627,-615.73,0.0001041,2]
[360622924,1746906671638,-400.0,0.0001041,2]
[360622925,1746906671648,-1746.81,0.0001041,2]
[360622926,1746906671658,-400.0,0.0001041,2]
[360622927,1746906671667,-807.94,0.0001041,2]
[360622928,1746906671678,-667.76,0.0001041,2]
[360622929,1746906671688,-400.0,0.0001041,2]
[360622930,1746906671698,-400.0,0.0001041,2]
[360622931,1746906671707,-1882.63,0.0001041,2]
[360622932,1746906671717,-494.59643183,0.0001041,2]
[360622933,1746906671727,-1100.05,0.0001041,2]
[360622934,1746906671736,-400.0,0.0001041,2]
[360622935,1746906671748,-400.0,0.0001041,2]
[360622936,1746906671758,-494.13,0.0001041,2]
[360622937,1746906671768,-400.0,0.0001041,2]
[360622938,1746906671777,-403.69,0.0001041,2]
[360622939,1746906671787,-400.0,0.0001041,2]
[360622940,1746906671796,-400.0,0.0001041,2]
[360622941,1746906671806,-438.08,0.0001041,2]
[360622942,1746906671816,-665.28,0.0001041,2]
[360622943,1746906671825,-643.06,0.0001041,2]
[360622944,1746906671835,-692.72,0.0001041,2]
[360622945,1746906671845,-888.64,0.0001041,2]
[360622946,1746906671854,-1142.12,0.0001041,2]
[360622947,1746906671864,-1160.64,0.0001041,2]
[360622948,1746906671873,-400.0,0.0001041,2]
[360622949,1746906671882,-1235.06,0.0001041,2]
[360622950,1746906671892,-400.0,0.0001041,2]
[360622951,1746906671901,-400.0,0.0001041,2]
[360622952,1746906671911,-4110.99,0.0001041,2]
[360622953,1746906671920,-512.06,0.0001041,2]
[360622954,1746906671930,-408.04,0.0001041,2]
[360622955,1746906671940,-866.6,0.0001041,2]
[360622956,1746906671950,-400.0,0.0001041,2]
[360622957,1746906671959,-1197.32,0.0001041,2]
[360622958,1746906671969,-4277.51,0.0001041,2]
[360622959,1746906671979,-400.0,0.0001041,2]
[360622960,1746906671989,-400.0,0.0001041,2]
[360622961,1746906671999,-400.0,0.0001041,2]
[360622962,1746906672008,-852.33,0.0001041,2]
[360622963,1746906672017,-400.0,0.0001041,2]
[360622964,1746906672026,-1309.03,0.0001041,2]
[360622965,1746906672035,-1077.29,0.0001041,2]
[360622966,1746906672045,-7785.86,0.0001041,2]
[360622967,1746906672053,-400.0,0.0001041,2]
[360622968,1746906672062,-283.69828778,0.0001041,2]
[360622969,1746906672072,-798.74,0.0001041,2]
[360622970,1746906672082,-400.0,0.0001041,2]
[360622971,1746906672092,-400.0,0.0001041,2]
[360622972,1746906672102,-2347.64,0.0001041,2]
[360622973,1746906672112,-722.49,0.0001041,2]
[360622974,1746906672122,-523.62,0.0001041,2]
[360622975,1746906672132,-400.0,0.0001041,2]
[360622976,1746906672141,-400.0,0.0001041,2]
[360622977,1746906672151,-400.0,0.0001041,2]
[360622978,1746906672160,-1540.79,0.0001041,2]
[360622979,1746906672170,-400.0,0.0001041,2]
[360622980,1746906672179,-633.73,0.0001041,2]
[360622981,1746906672189,-400.0,0.0001041,2]
[360622982,1746906672199,-415.52,0.0001041,2]
[360622983,1746906672208,-460.15,0.0001041,2]
[360622984,1746906672218,-1202.77,0.0001041,2]
[360622985,1746906672228,-671.11,0.0001041,2]
[360622986,1746906672238,-557.78,0.0001041,2]
[360622987,1746906672248,-8125.42,0.0001041,2]